Cogmind - Beta 16.1 @@@ ROGUE MODE // 2026.03.03 @ 13:08:23 Player: FL-IST Result: Self-destructed Performance ------------- Evolutions (1) 500 Regions Visited (5) 1000 Robots Destroyed (32) 160 Value Destroyed (855) 855 Prototype IDs (24) 480 Alien Tech Used (0) 0 Bonus (300) 300 TOTAL SCORE: 3295 Bonus ------- Aligned with FarCom 300 Cogmind --------- Core Integrity 309/400 Matter 236/300 Energy 250/250 System Corruption 0% Temperature Cool (0) Movement Treading (240) Ox1 Location -9/Exiles Parts ------- > --- POWER (1) -------- Ion Engine > --- PROPULSION (3) --- Light Treads Light Treads Light Treads > --- UTILITY (3) ------ High-capacity Storage Unit Seismic Detector Medium Armor Plating > --- WEAPON (2) ------- Beam Cannon Assault Cannon > --- INVENTORY (20) --- Light Ion Engine Light Treads Light Treads Flight Unit Flight Unit Improved Flight Unit Medium Storage Unit Visual Processing Unit Seismic Detector Hacking Suite Hacking Suite Hacking Suite Hacking Suite Beam Cannon Beam Cannon Assault Cannon Assault Cannon Rocket Launcher Rocket Launcher Makeshift Hammer Peak State ------------ > --- POWER ------------ Ion Engine > --- PROPULSION ------- Light Treads Light Treads Improved Flight Unit > --- UTILITY ---------- High-capacity Storage Unit Seismic Detector Light Armor Plating > --- WEAPON ----------- Beam Cannon Assault Cannon > --- INVENTORY -------- Light Ion Engine Light Treads Light Treads Compact Wheel Flight Unit Flight Unit Medium Storage Unit Visual Processing Unit Seismic Detector Hacking Suite Hacking Suite Hacking Suite Hacking Suite Beam Cannon Beam Cannon Assault Cannon Assault Cannon Assault Cannon Rocket Launcher Rocket Launcher [Rating: 16] Favorites ----------- Power Ion Engine Engine Ion Engine Propulsion Light Treads Treads Light Treads Wheel Wheel Flight Unit Improved Flight Unit Utility Seismic Detector Device Seismic Detector Storage High-capacity Storage Unit Protection Light Armor Plating Weapon Beam Cannon Energy Gun Medium Laser Energy Cannon Beam Cannon Ballistic Gun Assault Rifle Ballistic Cannon Light Cannon Launcher Rocket Launcher Build | -11 -10 -10 -9 -9 -9 ------- Run | Yrd Mat Min Mat Min Exi Slots Evolved 2 | . . . 2 . . Power . | . . . . . . Propulsion 1 | . . . 1 . . Utility 1 | . . . 1 . . Weapon . | . . . . . . Parts Attached 23 | 8 3 . 10 2 . Power 1 | 1 . . . . . Engine 1 | 1 . . . . . Core . | . . . . . . Reactor . | . . . . . . Propulsion 8 | 2 . . 6 . . Treads 6 | 1 . . 5 . . Leg . | . . . . . . Wheel 1 | 1 . . . . . Hover . | . . . . . . Flight 1 | . . . 1 . . Utility 8 | 3 1 . 2 2 . Device 2 | 2 . . . . . Storage 2 | 1 1 . . . . Processor . | . . . . . . Hackware . | . . . . . . Protection 4 | . . . 2 2 . Artifact . | . . . . . . Weapon 6 | 2 2 . 2 . . Energy Gun 1 | 1 . . . . . Energy Cannon 1 | . 1 . . . . Ballistic Gun 1 | 1 . . . . . Ballistic Cannon 2 | . 1 . 1 . . Launcher 1 | . . . 1 . . Special Weapon . | . . . . . . Impact Weapon . | . . . . . . Slashing Weapon . | . . . . . . Piercing Weapon . | . . . . . . Special Melee Weapon . | . . . . . . Unidentified Prototypes 1 | . . . 1 . . Parts Lost 2 | . . . 1 1 . Power . | . . . . . . Propulsion . | . . . . . . Utility 2 | . . . 1 1 . Weapon . | . . . . . . Highest Loss Streak 1 | . . . 1 1 . To Critical Strikes . | . . . . . . Average Backups 13 | 3 8 14 16 20 20 Power . | . 1 1 1 1 1 Propulsion 3 | 1 2 4 4 5 5 Utility 4 | . 2 3 5 7 7 Weapon 4 | . 2 6 6 7 7 Tool/Special . | . . . . . . Unused Backups 22 | . 2 . 4 1 15 Power 1 | . . . . . 1 Propulsion 3 | . . . 1 . 2 Utility 7 | . . . 1 . 6 Weapon 11 | . 2 . 2 1 6 Tool/Special . | . . . . . . Average Slot Usage (%) 98 | . 100 100 97 97 100 Engine 12 | . 14 14 11 11 11 Treads 24 | . 14 14 31 33 33 Wheel 6 | . 14 14 1 . . Device 12 | . 14 14 11 11 11 Storage 12 | . 14 14 11 11 11 Protection 5 | . . . 8 8 11 Energy Gun 3 | . 9 . . . . Energy Cannon 8 | . 4 14 10 11 11 Ballistic Gun 2 | . 4 . . . . Ballistic Cannon 10 | . 9 14 11 11 11 Peak Build Rating 16 | 7 8 8 16 16 16 Average Rating 10 | 5 7 8 12 14 16 On Entrance 8 | . 7 8 8 14 16 Avg Prop Armor Cover (%) 10 | 6 10 11 18 . . Naked Turns . | . . . . . . Heaviest Build 61 | 15 52 52 57 61 61 Greatest Support 60 | 20 20 10 60 60 60 Greatest Overweight (x) 5 | . 5 5 5 1 1 Average Overweight (x) 2 | . 3 5 . . 1 Largest Inventory Capacity 20 | 8 20 20 20 20 20 Average Capacity 18 | 6 17 20 20 20 20 Most Carried 20 | 5 14 14 20 20 20 Average Carried 13 | 3 8 14 16 19 20 Final Capacity 20 | 8 20 20 20 20 20 Final Carried 20 | 5 14 14 20 20 20 Class Distribution -------------------- 66% | Mutant 33% | Scavenger-Mutant Dominant Class ---------------- Mutant | -10/Materials Mutant | -10/Mines Mutant | -9/Materials Scavenger-Mutant | -9/Mines Scavenger-Mutant | -9/Exiles Resources | -11 -10 -10 -9 -9 -9 ----------- Run | Yrd Mat Min Mat Min Exi Matter Collected 767 | 246 207 . 230 84 . Remotely . | . . . . . . Salvage Created 1042 | 45 457 . 474 66 . Parts 77 | 8 24 . 40 5 . Haulers Intercepted 4 | . 2 . 2 . . Recyclers Shooed . | . . . . . . Parts Field Recycled . | . . . . . . Retrieved Matter . | . . . . . . Parts Self-Destructed . | . . . . . . Prevented . | . . . . . . Parts Restored . | . . . . . . Kills | -11 -10 -10 -9 -9 -9 ------- Run | Yrd Mat Min Mat Min Exi Combat Hostiles Destroyed 21 | . 8 . 12 1 . Guns 5 | . 5 . . . . Cannons 14 | . 3 . 10 1 . AOE 2 | . . . 2 . . Classes Destroyed 8 | 1 4 . 2 1 . Worker 1 | . . . . 1 . Tunneler 2 | 2 . . . . . Hauler 4 | . 2 . 2 . . Operator 1 | . 1 . . . . Watcher 3 | . 2 . 1 . . Swarmer 3 | . . . 3 . . Grunt 14 | . 8 . 5 1 . Sentry 4 | . . . 4 . . Best Kill Streak 3 | 2 2 . 3 2 . Combat Bots Only 3 | . 2 . 3 1 . Max Kills in Single Turn 2 | 1 1 . 2 1 . Gunslinging . | . . . . . . Exploded 1 | . . . 1 . . Melee . | . . . . . . Uniques/NPCs Destroyed . | . . . . . . Combat | -11 -10 -10 -9 -9 -9 -------- Run | Yrd Mat Min Mat Min Exi Hostile Shots Fired 76 | . 23 . 47 6 . Missed 16 | . 6 . 10 . . Hits 60 | . 17 . 37 6 . Projectile 60 | . 17 . 37 6 . Critical Strikes 1 | . 1 . . . . Damage Taken 774 | . 268 . 413 93 . Core 107 | . 16 . 73 18 . Absorbed by Shields . | . . . . . . Core Remaining (%) 96 | 100 . 93 . . . Volleys Fired 82 | 5 36 . 34 7 . Largest 2 | 2 2 . 2 2 . Hottest 97 | 70 90 . 97 97 . Shots Fired 164 | 10 72 . 68 14 . Gun 57 | 10 47 . . . . Cannon 104 | . 25 . 65 14 . Launcher 3 | . . . 3 . . Special . | . . . . . . Kinetic 82 | 5 36 . 34 7 . Thermal 79 | 5 36 . 31 7 . Explosive 3 | . . . 3 . . Electromagnetic . | . . . . . . Robot Hit Streak 7 | 5 7 . 7 7 . Robot Miss Streak 6 | 1 6 . 4 1 . Penetration Max . | . . . . . . Secondary Targets . | . . . . . . Shots Hit Robots 102 | 6 44 . 42 10 . Core Hits 48 | 3 24 . 18 3 . Critical Kills . | . . . . . . Critical Parts Destroyed . | . . . . . . Critical Strikes 2 | . 2 . . . . Burn 2 | . 2 . . . . Melee Attacks . | . . . . . . Impact . | . . . . . . Slashing . | . . . . . . Piercing . | . . . . . . Sneak Attacks . | . . . . . . Combat Hostiles . | . . . . . . Follow-up Attacks . | . . . . . . Damage Inflicted 1994 | 75 649 . 1073 197 . Guns 419 | 75 344 . . . . Cannons 1356 | . 305 . 854 197 . Explosions 212 | . . . 212 . . Melee . | . . . . . . Ramming 7 | . . . 7 . . Kinetic 939 | 36 335 . 477 91 . Thermal 836 | 39 314 . 377 106 . Explosive 212 | . . . 212 . . Electromagnetic . | . . . . . . Impact . | . . . . . . Slashing . | . . . . . . Piercing . | . . . . . . Highest Corruption . | . . . . . . Average Corruption . | . . . . . . Corruption Purged . | . . . . . . Corruption Blocked . | . . . . . . Overload Shots . | . . . . . . Overflow Damage 11 | . 2 . 9 . . Projectiles 11 | . 2 . 9 . . Explosions . | . . . . . . Melee . | . . . . . . Knockbacks 7 | . 1 . 3 3 . Impact 1 | . . . 1 . . Kinetic 4 | . 1 . 2 1 . Secondary 2 | . . . . 2 . Self-Inflicted Damage . | . . . . . . Shots . | . . . . . . Rammed 1 | . . . 1 . . Targets Rammed 1 | . . . 1 . . Kicked . | . . . . . . Crushed . | . . . . . . Highest Temperature 213 | 45 152 . 198 213 . Average Temperature 57 | 23 38 . 67 102 . Received Heat Transfer 315 | . 147 . 117 51 . Siege Activations . | . . . . . . Martial Activations . | . . . . . . Shielding Activations . | . . . . . . Robots Disrupted . | . . . . . . Combat Hostiles . | . . . . . . Robots Corrupted . | . . . . . . Combat Hostiles . | . . . . . . Parts Fried . | . . . . . . Impact Corruptions . | . . . . . . Robots Melted . | . . . . . . Combat Hostiles . | . . . . . . Parts Melted 3 | . 3 . . . . Heat Transferred 2109 | 111 999 . 777 222 . Parts Sabotaged . | . . . . . . Parts Stolen . | . . . . . . Parts Stripped . | . . . . . . Power Chain Reactions . | . . . . . . Alert | -11 -10 -10 -9 -9 -9 ------- Run | Yrd Mat Min Mat Min Exi Maximum Alert Level . | . . . . . . Low Security (%) 100 | 100 100 100 100 100 . Level 1 . | . . . . . . Level 2 . | . . . . . . Level 3 . | . . . . . . Level 4 . | . . . . . . Level 5 . | . . . . . . High Security . | . . . . . . Max Security . | . . . . . . Peak Influence 141 | 5 119 . 141 51 . Initial 51 | . . . . 51 . Average 31 | . 30 . 43 19 . Influence Increases 818 | 10 333 . 423 52 . Destroy 0b10 Robot/C 420 | . 160 . 240 20 . Destroy 0b10 Robot/NC 55 | 10 25 . 15 5 . Destroy Leader 134 | . 58 . 66 10 . Successful Hack 28 | . 28 . . . . Select Force Hacks 60 | . 30 . 30 . . Disable Machine 45 | . 15 . 30 . . Destroy Structure 31 | . 2 . 27 2 . Lose Combat Pursuer 45 | . 15 . 15 15 . Influence Decreases 818 | 10 333 . 290 185 . Entered New Map 82 | . . . . 82 . Time Decay 726 | 10 333 . 280 103 . Lost Part 10 | . . . 10 . . Squads Dispatched 5 | . 2 . 3 . . Investigation 4 | . 2 . 2 . . Extermination . | . . . . . . Reinforcement 1 | . . . 1 . . Assault . | . . . . . . Garrison . | . . . . . . Intercept . | . . . . . . Searches Triggered . | . . . . . . Construction Impeded . | . . . . . . Haulers Reinforced . | . . . . . . Active Scanning Responses . | . . . . . . Cargo Convoy Interrupts . | . . . . . . Stealth | -11 -10 -10 -9 -9 -9 --------- Run | Yrd Mat Min Mat Min Exi Distress Signals 1 | . . . 1 . . Communications Jammed . | . . . . . . Distress Signals . | . . . . . . Times Spotted 34 | . 15 . 17 2 . Peak Tracking Total 7 | . 2 . 7 2 . Tactical Retreats 3 | . 1 . 1 1 . Traps | -11 -10 -10 -9 -9 -9 ------- Run | Yrd Mat Min Mat Min Exi Traps Triggered 3 | . 2 . 1 . . Indirectly . | . . . . . . Trap Hack Attempts . | . . . . . . Triggered . | . . . . . . Disarmed . | . . . . . . Reprogrammed . | . . . . . . Reused . | . . . . . . Traps Extracted . | . . . . . . Installed . | . . . . . . Triggered . | . . . . . . Machines | -11 -10 -10 -9 -9 -9 ---------- Run | Yrd Mat Min Mat Min Exi Machines Disabled 4 | . 1 . 3 . . Max in Single Turn 1 | . 1 . 1 . . Machines Repaired . | . . . . . . Machines Dismantled . | . . . . . . Machines Sabotaged . | . . . . . . Overloaded Fab Kills . | . . . . . . Hacking | -11 -10 -10 -9 -9 -9 --------- Run | Yrd Mat Min Mat Min Exi Machines Accessed 14 | . 9 . 4 . 1 Terminals 10 | . 8 . 2 . . Fabricators . | . . . . . . Repair Stations . | . . . . . . Recycling Units 2 | . 1 . 1 . . Scanalyzers 1 | . . . 1 . . Garrison Access . | . . . . . . Total Hacks 41 | . 30 . 10 . 1 Successful 18 | . 14 . 3 . 1 Failed 23 | . 16 . 7 . . Catastrophic 2 | . 2 . . . . Database Lockouts . | . . . . . . Manual 34 | . 26 . 7 . 1 Terminals 31 | . 25 . 6 . . Fabricators . | . . . . . . Repair Stations . | . . . . . . Recycling Units 7 | . 5 . 2 . . Scanalyzers 2 | . . . 2 . . Garrison Access . | . . . . . . Terminal Hacks 4 | . 3 . . . 1 Robot Analysis 2 | . 2 . . . . Locate Traps 1 | . 1 . . . . Proto ID Catalog 1 | . . . . . 1 Fabricator Hacks . | . . . . . . Repair Station Hacks . | . . . . . . Recycling Unit Hacks 1 | . 1 . . . . Retrieve Components 1 | . 1 . . . . Scanalyzer 2 | . . . 2 . . Insert Component 1 | . . . 1 . . Analyze 1 | . . . 1 . . Garrison Access Hacks . | . . . . . . Unauthorized Hacks 11 | . 10 . 1 . . Terminals 9 | . 9 . . . . Botnet 4 | . 4 . . . . Skim 5 | . 5 . . . . Fabricators . | . . . . . . Repair Stations . | . . . . . . Recycling Units 2 | . 1 . 1 . . Tunnel 2 | . 1 . 1 . . Scanalyzers . | . . . . . . Garrison Access . | . . . . . . Data Cores Recovered 1 | . 1 . . . . Used . | . . . . . . Hacking Detections 13 | . 9 . 4 . . Full Trace Events . | . . . . . . Feedback Events . | . . . . . . Feedback Blocked . | . . . . . . Robot Schematics Acquired . | . . . . . . Robots Built . | . . . . . . Authchips . | . . . . . . Time . | . . . . . . Total Robot Build Rating . | . . . . . . Part Schematics Acquired 1 | . . . 1 . . Parts Built . | . . . . . . Authchips . | . . . . . . Time . | . . . . . . Total Part Build Rating . | . . . . . . Part Studies Acquired . | . . . . . . Parts Repaired . | . . . . . . Time . | . . . . . . Parts Recycled . | . . . . . . Recycled Matter . | . . . . . . Retrieved Matter . | . . . . . . Retrieved Components . | . . . . . . Parts Scanalyzed 1 | . . . 1 . . Part Schematics Acquired 1 | . . . 1 . . Parts Damaged . | . . . . . . Bothacking | -11 -10 -10 -9 -9 -9 ------------ Run | Yrd Mat Min Mat Min Exi Used RIF Installer . | . . . . . . Robots Hacked . | . . . . . . Non-combat . | . . . . . . Combat . | . . . . . . Robot Hacks Applied . | . . . . . . Relay Couplers Released . | . . . . . . Fabnet Peak Effective % . | . . . . . . Robots Rewired . | . . . . . . Allies Hacked . | . . . . . . Hacks Repelled . | . . . . . . Allies | -11 -10 -10 -9 -9 -9 -------- Run | Yrd Mat Min Mat Min Exi Total Allies . | . . . . . . Largest Group . | . . . . . . Highest-Rated Group . | . . . . . . Highest-Rated Ally . | . . . . . . Total Orders . | . . . . . . Ally Attacks . | . . . . . . Total Damage . | . . . . . . Kills . | . . . . . . Allies Corrupted . | . . . . . . Allies Melted . | . . . . . . Intel | -11 -10 -10 -9 -9 -9 ------- Run | Yrd Mat Min Mat Min Exi Active Infowar (turns) 2457 | 35 1003 58 785 295 281 Seismic 2457 | 35 1003 58 785 295 281 Robot Analysis Total 2 | . 2 . . . . Derelict Logs Recovered . | . . . . . . Drone Launches . | . . . . . . Drone Recoveries . | . . . . . . Exploration | -11 -10 -10 -9 -9 -9 ------------- Run | Yrd Mat Min Mat Min Exi Turns Passed 2544 | 122 1003 58 785 295 281 Spaces Moved 1297 | 62 569 38 358 153 117 Core 3 | 3 . . . . . Treads 710 | 54 56 . 330 153 117 Legs . | . . . . . . Wheels 584 | 5 513 38 28 . . Hover . | . . . . . . Flight . | . . . . . . Fastest Speed 50 | 50 95 155 155 160 240 Average Speed 162 | 148 147 155 160 172 240 Slowest Speed 320 | 160 160 155 320 240 240 Overloaded Moves . | . . . . . . Propulsion Burnouts . | . . . . . . Robots Hopped . | . . . . . . Potential Cave-ins . | . . . . . . Cave-ins Triggered . | . . . . . . Exploration Rate (%) 39 | 3 96 19 34 41 41 Regions Visited 5 Branch Regions 3 Pre-discovered Areas 3 | . 2 . 1 . . Known Exits Taken 3 | . 1 1 1 . . Unknown Exits Taken 2 | 1 . . . 1 . Scrap Searched . | . . . . . . Spaces Dug . | . . . . . . Terrain Destroyed 32 | . . . 30 2 . Melee . | . . . . . . Projectile 4 | . . . 2 2 . AOE 28 | . . . 28 . . Terrain Rammed . | . . . . . . Walls Destroyed . | . . . . . . Machines Disabled . | . . . . . . Actions | -11 -10 -10 -9 -9 -9 --------- Run | Yrd Mat Min Mat Min Exi Total 1567 | 78 663 37 501 171 117 Wait 126 | . 43 . 75 8 . Move 1292 | 61 568 37 357 152 117 Hop . | . . . . . . Pick Up 25 | 4 10 . 10 1 . Fast Attach 12 | 7 1 . 3 1 . Attach 3 | . . . 3 . . Detach 1 | . . . 1 . . Swap 12 | 1 2 . 8 1 . Drop 13 | . 3 . 9 1 . Fire 82 | 5 36 . 34 7 . Melee . | . . . . . . Ram . | . . . . . . Kick . | . . . . . . Crush 1 | . . . 1 . . Escape Stasis . | . . . . . . Rewire . | . . . . . . Trap . | . . . . . . Miscellaneous . | . . . . . . Route ------- -11/Scrapyard -10/Materials (discovered 5 exits: *Mat x3 / *Min / Sub) -10/Mines (discovered 2 exits: *Mat / Sub) -9/Materials -9/Mines -9/Exiles History --------- Turn | Location | Event 2 | -11/Scrapyard | Discovered new exit (range 16) 123 | -11/Scrapyard | Entered Materials 323 | -10/Materials | Build established: Mutant 379 | -10/Materials | Discovered new exit (range 5) 592 | -10/Materials | Identified exit to Mines 638 | -10/Materials | Learned 4 Subcaves zone layouts 674 | -10/Materials | Identified exit to Materials 674 | -10/Materials | Identified exit to Subcaves 702 | -10/Materials | Learned location of Mines (-9) 734 | -10/Materials | Learned 2 Mines zone layouts 755 | -10/Materials | Learned 4 Subcaves zone layouts 785 | -10/Materials | Learned 4 Recycling zone layouts 826 | -10/Materials | Loaded intel: 1 repair station location 1126 | -10/Materials | Entered Mines 1184 | -10/Mines | Entered Materials 1184 | -9/Materials | Evolved 2 slots: Propulsion x1, Utility x1 1185 | -9/Materials | Identified exit to Mines 1969 | -9/Materials | Entered Mines 1995 | -9/Mines | A weapon hastily lodged in a ceiling crevice suddenly fell to the ground 2001 | -9/Mines | Build established: Scavenger-Mutant 2192 | -9/Mines | Found a damaged Exp. Sensor Array with a note attached 2252 | -9/Mines | Deemed a non-threat by the Exiles lab entrance 2254 | -9/Mines | Discovered new exit (range 5) 2264 | -9/Mines | Entered Exiles 2324 | -9/Exiles | Met 8R-AWN 2365 | -9/Exiles | Met EX-HEX 2435 | -9/Exiles | Met EX-BIN 2468 | -9/Exiles | Aligned with FarCom system 2471 | -9/Exiles | Given EX-Vault access code 2528 | -9/Exiles | Opened EX-Vault 2545 | -9/Exiles | Self-destructed Last Messages --------------- Modified TNC 0b10 Alert Chip Cloak of Protection Skeleton Box Trap Reconfigurator Supersonic Drone Bay Army-in-a-Box PSU Rigger Chronowheel AWS/Thermal Latent Energy Streamer Gui. Plasma Cannon Firepult YOLO Cannon AWS/Gauss XL Autogun Array AWS/Autocannon Field Lobotomy Kit Longsword +1 Deploy-a-Sentry Map ----- +----------------------------------------------------+ | | | | | | | | | | | | | | | | | | | | | | | | | | | | | | | | | | | | | | | | | | | ?????????????????????????#???????????????????????? | | ?????????????????????####X####???????????????????? | | ?????????????????????# #???????????????????? | | ?????????????????????# ! #???????????????????? | | ?????????????????????# =@ |#???????????????????? | | ?????????????????????## ##???????????????????? | | ?????????????????????#X #????????????????????? | | ?????????????????????## #????????????????????? | | ??????????????????????# #????????????????????? | | ??????????????????????# #???###??????????????? | | ??????????????????????# #??"""""#????????????? | | ??????????????????????# ## """#????????????? | | ??????????????????????# X""#????????????? | | ??????????????????????# ## """#????????????? | | ?????????????????###??# #??"""""#????????????? | | ????????????????"""""?# #???###??????????????? | | ????????????????""" ## #????????????????????? | | ??????????????#""X" #????????????????????? | | ??????????????#" #????????????????????? | | ??????????????#" ## #????????????????????? | | ??????????????#""""""?# #?#########??????????? | | ????????????????"###??# #?#"""""""#??????????? | | ??????????????????????# #?#"""""""#??????????? | | ??????????????????????# #?#"""""""#??????????? | | ?????????????????????## ###"" """"#??????????? | | ?????????????????????#" """"#??????????? | | ?????????????????????#" """#??????????? | | ?????????????????????#" """#??????????? | | ?????????????????????#" """#??????????? | +----------------------------------------------------+ Best States ------------- Heat Dissipation 28 Energy Generation 10 Energy Capacity 250 Matter Stores 300 Matter Capacity 300 Sight Range 16 Terrain Scan Density 10 Armor Coverage 225 Propulsion Shielding 33 Evasion (%) 44 Recoil Reduction 3 Item Schematics ----------------- Hacking Suite | -9/Materials | Scanalyzed Robot Schematics ------------------ None Fabricated ------------ Nothing Repaired ---------- Nothing Studied --------- None Alien Tech Used ----------------- None Achievements -------------- None Challenges ------------ None Game ------ Seed CorruptionVortexExtractor Manual? 0 Play Time 00:14:09 Cumulative 320.8 hours Start 2026.03.03 @ 05:51:47 End 2026.03.03 @ 13:08:23 Sessions 2 Manual Loads 0 Difficulty Rogue Special Mode None Game No. 257 Rogue 257 Adventurer 0 Explorer 0 Win Type - Total 18 Types 9/0/7/2/0/0/0/0/0/0 Lore% 85 Gallery% 75 Achievement% 62 Wizard Run 0 Options --------- Layout 1 ASCII 0 Keyboard 0 Movement Numpad Keybinds 0 Fullscreen 1 Font 32/SmallcapsGlow Map View 77x35 Zoom Use 0% Tactical HUD 1 Map Filters NONE Filters NONE Steam 1 RUN: 69bb1db1-70a1-4c96-90f5-3bcc7dd4a880